bitfinex/quotes_BTCUSD_20250508
["timestamp","ask_amount","ask_price","bid_price","bid_amount"]
[1746684398926,0.0101147,98866.0,98864.0,0.01833238]
[1746684399849,0.0121147,98866.0,98864.0,0.01833238]
[1746684400040,0.0121147,98866.0,98864.0,0.01933238]
[1746684400226,0.0141147,98866.0,98865.0,0.01833213]
[1746684400849,0.0171147,98866.0,98865.0,0.01833213]
[1746684401058,0.0131147,98866.0,98864.0,0.001]
[1746684401259,0.003,98866.0,98865.0,0.01833213]
[1746684401999,0.003,98866.0,98865.0,0.03373213]
[1746684402208,0.003,98866.0,98865.0,0.01833213]
[1746684402403,0.002,98866.0,98865.0,0.01833213]
[1746684402735,0.00406903,98869.0,98868.0,0.20228992]
[1746684403095,0.00406903,98869.0,98868.0,0.01833139]
[1746684403431,0.00406903,98869.0,98868.0,0.01893219]
[1746684403577,0.00406903,98869.0,98868.0,0.2395535]
[1746684404186,0.00606903,98869.0,98868.0,0.03726358]
[1746684406137,0.00906903,98869.0,98868.0,0.03826358]
[1746684406902,0.00897846,98869.0,98868.0,0.03826358]
[1746684417883,0.00897846,98869.0,98868.0,0.1400577]
[1746684418439,0.00897846,98869.0,98868.0,0.1560577]
[1746684419117,0.00597846,98869.0,98868.0,0.1550577]
[1746684419532,0.00397846,98869.0,98868.0,0.1550577]
[1746684419964,0.00397846,98869.0,98868.0,0.1570577]
[1746684420140,0.00697846,98869.0,98868.0,0.56250953]
[1746684420646,0.00697846,98869.0,98868.0,0.56150953]
[1746684421524,0.00397846,98869.0,98868.0,0.56050953]
[1746684421955,0.00497846,98869.0,98868.0,0.56050953]
[1746684422234,0.02127846,98869.0,98868.0,0.56150953]
[1746684422451,0.00497846,98869.0,98868.0,0.56150953]
[1746684431434,0.00497846,98869.0,98868.0,0.4800577]
[1746684447439,0.00497846,98869.0,98868.0,0.8983577]
[1746684448582,0.00497846,98869.0,98868.0,0.4800577]
[1746684449802,0.00497846,98869.0,98868.0,0.46112551]
[1746684454004,0.00497846,98869.0,98868.0,0.48008889]
[1746684454225,0.00497846,98869.0,98868.0,0.58560918]
[1746684463639,0.00497846,98869.0,98868.0,0.61403924]
[1746684464634,0.00497846,98869.0,98868.0,0.58560918]
[1746684464860,0.00497846,98869.0,98868.0,0.6140365]
[1746684465578,0.00497846,98869.0,98868.0,0.58560918]
[1746684466373,0.00497846,98869.0,98868.0,0.5666458]
[1746684469990,0.004,98889.0,98886.0,0.35011265]
[1746684470265,0.004,98889.0,98886.0,0.34]
[1746684470490,0.004,98889.0,98887.0,0.01513022]
[1746684470708,0.004,98889.0,98888.0,0.01895264]
[1746684470926,0.004,98889.0,98888.0,0.01895166]
[1746684471144,0.004,98889.0,98888.0,0.09272676]
[1746684471363,0.004,98889.0,98888.0,0.09272675]
[1746684471805,0.006,98889.0,98888.0,0.09272675]
[1746684472875,0.0221,98889.0,98888.0,0.09272675]
[1746684473084,0.0231,98889.0,98888.0,0.09272675]
[1746684473517,0.0201,98889.0,98888.0,0.09272675]
[1746684473725,0.0221,98889.0,98888.0,0.09272675]
[1746684473942,0.0221,98889.0,98888.0,0.03408162]
[1746684474175,0.006,98889.0,98888.0,0.03408162]
[1746684482798,0.0379,98889.0,98888.0,0.03408162]
[1746684483010,0.25267515,98889.0,98888.0,0.03408162]
[1746684483230,0.25014696,98889.0,98888.0,0.03408162]
[1746684483432,0.0479,98889.0,98888.0,0.03408162]
[1746684483634,0.05042826,98889.0,98888.0,0.03408162]
[1746684483850,0.25267522,98889.0,98888.0,0.03408162]
[1746684484051,0.25014696,98889.0,98888.0,0.03408162]
[1746684493622,0.25014696,98889.0,98888.0,0.01895165]
[1746684495566,0.24914696,98889.0,98888.0,0.01895165]
[1746684495774,0.25114696,98889.0,98888.0,0.01995165]
[1746684496208,0.24823913,98889.0,98888.0,0.01995165]
[1746684496664,0.24723913,98889.0,98888.0,0.01995165]
[1746684497074,0.24823913,98889.0,98888.0,0.01995165]
[1746684497513,0.00409217,98889.0,98888.0,0.01995165]
[1746684497722,0.00409217,98889.0,98888.0,0.04419448]
[1746684497941,0.00409217,98889.0,98888.0,0.06113456]
[1746684498145,0.00409217,98889.0,98888.0,0.07643456]
[1746684500982,0.00409217,98889.0,98888.0,0.06113456]
[1746684503490,0.00409217,98889.0,98888.0,0.03689173]
[1746684515263,0.00409217,98889.0,98888.0,0.05309173]
[1746684516112,0.00409217,98889.0,98888.0,0.13868585]
[1746684518287,0.00409217,98889.0,98888.0,0.68093485]
[1746684520282,0.00409217,98889.0,98888.0,0.69733485]
[1746684520513,0.00409217,98889.0,98888.0,0.80285514]
[1746684521334,0.00309217,98889.0,98888.0,0.80285514]
[1746684521544,0.00109217,98889.0,98888.0,0.81695514]
[1746684521971,0.00209217,98889.0,98888.0,0.81695514]
[1746684522615,0.00209217,98889.0,98888.0,0.79587852]
[1746684523826,0.00209217,98889.0,98888.0,0.7942455]
[1746684524240,0.00209217,98889.0,98888.0,0.5755965]
[1746684525853,0.00209217,98889.0,98888.0,0.5911965]
[1746684526820,0.00209217,98889.0,98888.0,0.6064965]
[1746684527071,0.00209217,98889.0,98888.0,0.8087455]
[1746684527485,0.002,98895.0,98894.0,0.54223673]
[1746684527700,0.00211039,98895.0,98894.0,0.66090702]
[1746684528854,0.00311039,98895.0,98894.0,0.66090702]
[1746684529659,0.00411039,98895.0,98894.0,0.66090702]
[1746684530267,0.00311039,98895.0,98894.0,0.66090702]
[1746684530470,0.00211039,98895.0,98894.0,0.76642731]
[1746684530678,0.00211039,98895.0,98894.0,0.76842731]
[1746684531507,0.00201984,98895.0,98894.0,0.76842731]
[1746684534298,0.00201984,98895.0,98894.0,0.79942731]
[1746684536283,0.00201984,98895.0,98894.0,0.81837053]
[1746684536481,0.004,98909.0,98908.0,0.20220811]
[1746684536688,0.004,98909.0,98908.0,0.21899622]
[1746684537070,0.004,98909.0,98908.0,0.23793944]
[1746684537829,0.007,98909.0,98908.0,0.23893944]
[1746684538159,0.007,98909.0,98908.0,0.24642252]
[1746684538370,0.007,98909.0,98908.0,0.30881451]
[1746684539049,0.009,98909.0,98908.0,0.30881451]
[1746684540764,0.009,98909.0,98908.0,0.35038678]
[1746684540971,0.0241,98909.0,98908.0,0.28799479]
[1746684541186,0.0241,98909.0,98908.0,0.08578668]
[1746684541392,0.0403,98909.0,98908.0,0.28799479]
[1746684541859,0.0403,98909.0,98908.0,0.0783036]
[1746684542048,0.0403,98909.0,98908.0,0.28051171]
[1746684542565,0.00237064,98912.0,98908.0,0.36480651]
[1746684542736,0.00252757,98913.0,98908.0,0.36480651]
[1746684543170,0.01263746,98913.0,98909.0,0.01894322]
[1746684543539,0.01263746,98913.0,98910.0,0.01396055]
[1746684543749,0.007,98912.0,98910.0,0.03290377]
[1746684543957,0.004,98912.0,98910.0,0.03290377]
[1746684544368,0.01563746,98913.0,98910.0,0.03290377]
[1746684544569,0.01663746,98913.0,98910.0,0.03290377]
[1746684544770,0.01663746,98913.0,98911.0,0.01894322]
[1746684544980,0.003,98912.0,98911.0,0.01894322]
[1746684545653,0.0183,98912.0,98911.0,0.01894322]
[1746684546176,0.0153,98912.0,98911.0,0.01894322]
[1746684546375,0.0163,98912.0,98911.0,0.01894322]
[1746684546765,0.0153,98912.0,98911.0,0.01894322]
[1746684546913,0.0163,98912.0,98911.0,0.01894322]
[1746684547702,0.0173,98912.0,98908.0,0.24378038]
[1746684548040,0.21231206,98911.0,98908.0,0.04157227]
[1746684548244,0.0176,98912.0,98906.0,0.21232088]
[1746684548447,0.01463756,98912.0,98907.0,0.20220852]
[1746684548664,0.0157,98911.0,98907.0,0.20220852]
[1746684549474,0.0177,98911.0,98907.0,0.20220852]
[1746684549678,0.0163,98910.0,98907.0,0.20220852]
[1746684550494,0.002,98911.0,98907.0,0.20220852]
[1746684550833,0.02893756,98912.0,98907.0,0.2437715]
[1746684550996,0.004,98910.0,98907.0,0.2437715]
[1746684551205,0.004,98910.0,98907.0,0.253882]
[1746684551403,0.004,98910.0,98909.0,0.20220606]
[1746684552215,0.002,98910.0,98909.0,0.20220606]
[1746684552424,0.0101102,98910.0,98907.0,0.2437715]
[1746684552605,0.004,98911.0,98907.0,0.2437715]
[1746684552961,0.01263756,98912.0,98907.0,0.2437715]
[1746684553297,0.004,98910.0,98907.0,0.2437715]
[1746684553510,0.002,98910.0,98907.0,0.2437715]
[1746684553764,0.01263756,98912.0,98907.0,0.253882]
[1746684554012,0.002,98911.0,98907.0,0.253882]
[1746684554322,0.00552757,98912.0,98909.0,0.20220531]
[1746684554481,0.01563756,98912.0,98909.0,0.20220531]
[1746684555286,0.01263756,98912.0,98909.0,0.20220531]
[1746684555720,0.004,98910.0,98909.0,0.20220531]
[1746684556115,0.002,98910.0,98909.0,0.20220531]
[1746684556482,0.01563756,98912.0,98909.0,0.20220531]
[1746684556886,0.002,98910.0,98909.0,0.20220531]
[1746684557085,0.002,98910.0,98909.0,0.21740531]
[1746684557289,0.004,98910.0,98909.0,0.21740531]
[1746684558302,0.004,98910.0,98909.0,0.20220531]
[1746684558491,0.002,98910.0,98909.0,0.20220531]
[1746684558704,0.002,98910.0,98909.0,0.27440574]
[1746684558913,4.546e-05,98913.0,98909.0,0.28451604]
[1746684559115,0.001,98910.0,98909.0,0.28451604]
[1746684559322,0.001,98910.0,98909.0,0.30031604]
[1746684559749,4.546e-05,98913.0,98909.0,0.31925467]
[1746684559955,0.001,98910.0,98909.0,0.31925467]
[1746684560711,0.00204546,98913.0,98909.0,0.31925467]
[1746684560946,0.00204546,98913.0,98911.0,0.20220189]
[1746684561416,0.00204546,98913.0,98912.0,0.01893863]
[1746684562942,4.546e-05,98913.0,98912.0,0.01893863]
[1746684563152,0.00204546,98913.0,98912.0,0.01893863]
[1746684563919,0.00404546,98913.0,98912.0,0.01893863]
[1746684565236,0.00404546,98913.0,98912.0,0.0517609]
[1746684566796,0.00404546,98913.0,98912.0,0.01893863]
[1746684570147,0.00404546,98913.0,98912.0,0.03513863]
[1746684571030,0.00404546,98913.0,98912.0,0.04317585]
[1746684572391,0.00404546,98913.0,98912.0,0.02697585]
[1746684574300,0.00204546,98913.0,98912.0,0.02697585]
[1746684574505,4.546e-05,98913.0,98912.0,0.02697585]
[1746684574817,0.00204546,98913.0,98912.0,0.02697585]
[1746684575844,0.00204546,98913.0,98912.0,0.10292654]
[1746684579921,0.00204546,98913.0,98912.0,0.02697585]
[1746684589695,0.00204546,98913.0,98912.0,0.04207585]
[1746684590101,0.00204546,98913.0,98912.0,0.02697585]
[1746684597412,0.00204546,98913.0,98912.0,0.38247585]
[1746684597820,0.00204546,98913.0,98912.0,0.39767585]
[1746684598065,0.00204546,98913.0,98912.0,0.50319614]
[1746684598381,0.00204546,98913.0,98912.0,0.48799614]
[1746684601880,0.00204546,98913.0,98912.0,0.50309614]
[1746684602489,0.00204546,98913.0,98912.0,0.39757585]
[1746684602901,0.00204546,98913.0,98912.0,0.38247585]
[1746684604704,0.00204546,98913.0,98912.0,0.39877585]
[1746684607972,0.00204546,98913.0,98912.0,0.91886997]
[1746684608168,0.00104546,98913.0,98912.0,0.91886997]
[1746684608381,0.00104546,98913.0,98912.0,1.02439026]
[1746684608547,0.00104546,98913.0,98912.0,1.02539026]
[1746684609563,4.546e-05,98913.0,98912.0,1.02539026]
[1746684609763,0.001,98920.0,98918.0,0.0303]
[1746684609960,0.00145468,98920.0,98919.0,0.34]
[1746684610175,0.00145468,98920.0,98919.0,0.42402975]
[1746684610573,0.00145468,98920.0,98919.0,0.44296838]
[1746684617907,0.00145468,98920.0,98919.0,0.02557639]
[1746684618111,0.03395468,98920.0,98919.0,0.02557639]
[1746684618734,0.04395468,98920.0,98919.0,0.02557639]
[1746684619250,0.1457488,98920.0,98919.0,0.02557639]
[1746684619564,0.1457488,98920.0,98919.0,0.01893863]
[1746684619763,0.22401013,98920.0,98919.0,0.01893863]
[1746684620373,0.22801013,98920.0,98919.0,0.01893863]
[1746684620807,0.22601013,98920.0,98919.0,0.01893863]
[1746684621017,0.01010999,98912.0,98907.0,0.002]
[1746684621224,0.0408,98910.0,98907.0,0.002]
[1746684621648,0.04332781,98910.0,98907.0,0.002]
[1746684621851,0.21760606,98909.0,98907.0,0.002]
[1746684622062,0.01792789,98908.0,98907.0,0.002]
[1746684622263,0.02792789,98908.0,98907.0,0.02091039]
[1746684622840,0.02792785,98908.0,98907.0,0.02091039]
[1746684623039,0.012,98908.0,98907.0,0.02091039]
[1746684623449,0.02972781,98908.0,98907.0,0.02091039]
[1746684624018,0.03272781,98908.0,98907.0,0.02091039]
[1746684625520,0.0302,98908.0,98907.0,0.02091039]
[1746684626181,0.03272781,98908.0,98907.0,0.02091039]
[1746684626594,0.01752781,98908.0,98907.0,0.02091039]
[1746684627136,0.015,98908.0,98907.0,0.02091039]
[1746684628045,0.013,98908.0,98907.0,0.01891039]
[1746684628217,0.01552781,98908.0,98907.0,0.01891039]
[1746684628830,0.03132781,98908.0,98907.0,0.01891039]
[1746684630766,0.013,98908.0,98907.0,0.01891039]
[1746684639547,0.005,98908.0,98907.0,0.01891039]
[1746684640442,0.00752766,98908.0,98907.0,0.01891039]
[1746684640719,0.00552766,98908.0,98907.0,0.01891039]
[1746684641177,0.00752766,98908.0,98907.0,0.01891039]
[1746684641639,0.03182766,98908.0,98907.0,0.01891039]
[1746684641863,0.02882766,98908.0,98907.0,0.01891039]
[1746684642362,0.03082766,98908.0,98907.0,0.01891039]
[1746684648045,0.01452766,98908.0,98907.0,0.01891039]
[1746684661602,0.012,98908.0,98907.0,0.01891039]
[1746684661781,0.01452779,98908.0,98907.0,0.01891039]
[1746684661979,0.012,98908.0,98907.0,0.01891039]
[1746684662227,0.01452779,98908.0,98907.0,0.01891039]
[1746684662940,0.012,98908.0,98907.0,0.01891039]
[1746684663376,0.004,98908.0,98907.0,0.04891039]
[1746684663614,0.00652778,98908.0,98907.0,0.04891039]
[1746684663825,0.00652778,98908.0,98907.0,0.03391039]
[1746684664234,0.00652778,98908.0,98907.0,0.01891039]
[1746684667191,0.00652778,98908.0,98907.0,0.03401039]
[1746684668198,0.00652778,98908.0,98907.0,0.05435738]
[1746684669649,0.00652778,98908.0,98907.0,0.03925738]
[1746684670005,0.00652778,98908.0,98907.0,0.01891039]
[1746684671351,0.00652778,98908.0,98907.0,0.03925738]
[1746684671562,0.00652778,98908.0,98907.0,0.01891039]
[1746684672416,0.00652778,98908.0,98907.0,0.03925738]
[1746684674635,0.00652778,98908.0,98907.0,0.01891039]
[1746684683015,0.21233193,98902.0,98900.0,0.0162]
[1746684683339,0.01011101,98902.0,98901.0,0.03534212]
[1746684684318,0.01211101,98902.0,98901.0,0.03534212]
[1746684684737,0.01111101,98902.0,98901.0,0.03534212]
[1746684684964,0.01211101,98902.0,98901.0,0.03534212]
[1746684685567,0.01111101,98902.0,98901.0,0.03534212]
[1746684685764,0.01211101,98902.0,98901.0,0.03534212]
[1746684686424,0.21433138,98902.0,98901.0,0.03534212]
[1746684686622,0.01211101,98902.0,98901.0,0.02034212]
[1746684686902,0.01011112,98901.0,98898.0,0.28142793]
[1746684687130,0.01011112,98901.0,98898.0,0.04486139]
[1746684687357,0.01011112,98901.0,98899.0,0.0162]
[1746684687587,0.01011112,98901.0,98898.0,0.04486139]
[1746684688058,0.01011112,98901.0,98900.0,0.0166]
[1746684688290,0.01111112,98901.0,98900.0,0.0166]
[1746684689086,0.001,98901.0,98900.0,0.0166]
[1746684689288,0.001,98901.0,98900.0,0.0326]
[1746684690454,0.01011091,98903.0,98901.0,0.0158]
[1746684690974,0.01011091,98903.0,98902.0,0.02034175]
[1746684691702,0.01111091,98903.0,98902.0,0.02034175]
[1746684692463,0.01211091,98903.0,98902.0,0.02034175]
[1746684692662,0.01111091,98903.0,98902.0,0.02034175]
[1746684692916,0.01211091,98903.0,98902.0,0.02034175]
[1746684693370,0.01111091,98903.0,98902.0,0.02034175]
[1746684694512,0.01211091,98903.0,98902.0,0.02034175]
[1746684695338,0.01211091,98903.0,98902.0,0.0392971]
[1746684696852,0.01463859,98903.0,98902.0,0.0392971]
[1746684718372,0.002,98903.0,98902.0,0.61191747]
[1746684719501,0.002,98903.0,98902.0,0.4096971]
[1746684719936,0.002,98903.0,98902.0,0.3942971]
[1746684722839,0.002,98903.0,98902.0,0.59651747]
[1746684726581,0.002,98903.0,98902.0,0.61291747]
[1746684730485,0.002,98903.0,98902.0,0.73297861]
[1746684730733,0.002,98903.0,98902.0,0.83477273]
[1746684731954,0.001,98903.0,98902.0,0.83477273]
[1746684732388,0.001,98903.0,98902.0,0.83577273]
[1746684732733,0.001,98903.0,98902.0,0.83477273]
[1746684733134,0.001,98903.0,98902.0,0.83777273]
[1746684733630,0.001,98903.0,98902.0,0.84077273]
[1746684734046,0.008,98919.0,98917.0,0.21828775]
[1746684734246,0.0105274,98919.0,98917.0,0.21828775]
[1746684734451,0.00145468,98920.0,98919.0,0.23388562]
[1746684734790,0.00145468,98920.0,98919.0,0.25414082]
[1746684735019,0.00145468,98920.0,98919.0,0.27309617]
[1746684735401,0.00145468,98920.0,98919.0,0.25699617]
[1746684736544,0.00145468,98920.0,98919.0,0.59699617]
[1746684736759,0.00245468,98920.0,98919.0,0.59699617]
[1746684737140,0.00345468,98920.0,98919.0,0.59699617]
[1746684737375,0.00245468,98920.0,98919.0,0.59699617]
[1746684738084,0.00145468,98920.0,98919.0,0.59699617]
[1746684738475,0.00145468,98920.0,98919.0,0.7314076]
[1746684740738,0.21226323,98934.0,98919.0,0.7314076]
[1746684740739,0.002,98945.0,98944.0,0.20213454]
[1746684740956,0.002,98945.0,98944.0,0.01895535]
[1746684741181,0.20420141,98945.0,98944.0,0.01895535]
[1746684741373,0.00206892,98945.0,98944.0,0.03910802]
[1746684741578,0.00206892,98945.0,98944.0,0.0607936]
[1746684741809,0.01006892,98945.0,98944.0,0.08090548]
[1746684742003,0.03503766,98945.0,98944.0,0.08190548]
[1746684742640,0.03703766,98945.0,98944.0,0.08190548]
[1746684742781,0.03703766,98945.0,98944.0,0.0617936]
[1746684742975,0.03503766,98945.0,98944.0,0.0617936]
[1746684743324,0.02903766,98945.0,98944.0,0.0684328]
[1746684743591,0.03203766,98945.0,98944.0,0.0684328]
[1746684744360,0.03203766,98945.0,98944.0,0.0607936]
[1746684744981,0.01543766,98945.0,98944.0,0.0607936]
[1746684745789,0.03073766,98945.0,98944.0,0.0607936]
[1746684746236,0.01543766,98945.0,98944.0,0.0607936]
[1746684752537,0.01306892,98945.0,98944.0,0.0607936]
[1746684752949,0.00506892,98945.0,98944.0,0.0935936]
[1746684753164,0.00506892,98945.0,98944.0,0.0770936]
[1746684753366,0.00506892,98945.0,98944.0,0.09713737]
[1746684753819,0.20720141,98945.0,98944.0,0.09713737]
[1746684754374,0.20720141,98945.0,98944.0,0.08083737]
[1746684754578,0.20720141,98945.0,98944.0,0.14557907]
[1746684754993,0.21520141,98945.0,98944.0,0.08083737]
[1746684756258,0.21520141,98945.0,98944.0,0.0607936]
[1746684762945,0.01306892,98945.0,98944.0,0.0769936]
[1746684763151,0.00506892,98945.0,98944.0,0.0920936]
[1746684763539,0.00506892,98945.0,98944.0,0.11213737]
[1746684764155,0.00306892,98945.0,98944.0,0.11213737]
[1746684764491,0.00406892,98945.0,98944.0,0.11213737]
[1746684764919,0.00306892,98945.0,98944.0,0.11213737]
[1746684765138,0.00406892,98945.0,98944.0,0.11213737]
[1746684766474,0.20620141,98945.0,98944.0,0.11213737]
[1746684767745,0.00406892,98945.0,98944.0,0.11213737]
[1746684768098,0.00406892,98945.0,98944.0,0.09703737]
[1746684769998,0.00406892,98945.0,98944.0,0.11243737]
[1746684772557,0.00406892,98945.0,98944.0,0.17143141]
[1746684773838,0.00406892,98945.0,98944.0,0.09703737]
[1746684774058,0.00406892,98945.0,98944.0,0.08083737]
[1746684775645,0.00406892,98945.0,98944.0,0.11193737]
[1746684776868,0.00406892,98945.0,98944.0,0.09643737]
[1746684777784,0.00406892,98945.0,98944.0,0.08083737]
[1746684779354,0.00406892,98945.0,98944.0,0.12566071]
[1746684779784,0.00406892,98945.0,98944.0,0.14176071]
[1746684779980,0.00406892,98945.0,98944.0,0.12176071]
[1746684780767,0.00406892,98945.0,98944.0,0.47630156]
[1746684782048,0.00306892,98945.0,98944.0,0.47630156]
[1746684782588,0.00206892,98945.0,98944.0,0.47630156]
[1746684785503,0.00206892,98945.0,98944.0,0.57809568]
[1746684786562,0.00206892,98945.0,98944.0,0.57909568]
[1746684787197,0.00206892,98945.0,98944.0,0.37995353]
[1746684787406,0.00206892,98945.0,98944.0,0.50211232]
[1746684788296,0.00206892,98945.0,98944.0,0.50111232]
[1746684788493,0.00206892,98945.0,98944.0,0.50211232]
[1746684788935,0.00206892,98945.0,98944.0,0.54272466]
[1746684790382,0.00206892,98945.0,98944.0,0.55862466]
[1746684793869,0.00206892,98945.0,98944.0,0.57522466]
[1746684794012,0.00206892,98945.0,98944.0,0.56330985]
[1746684795164,0.004,98949.0,98948.0,0.21666721]
[1746684795373,0.004,98949.0,98948.0,0.25188557]
[1746684795564,0.004,98949.0,98948.0,0.28911289]
[1746684795964,0.004,98949.0,98948.0,0.64501289]
[1746684796802,0.004,98949.0,98948.0,0.62911289]
[1746684798299,0.0347,98949.0,98948.0,0.03722732]
[1746684798504,0.24482432,98949.0,98948.0,0.03722732]
[1746684798715,0.24482432,98949.0,98948.0,0.01893292]
[1746684798906,0.24482432,98949.0,98948.0,0.03721835]
[1746684799596,0.31276222,98949.0,98948.0,0.03721835]
[1746684799990,0.31276222,98949.0,98948.0,0.01893292]
[1746684801090,0.24582432,98949.0,98948.0,0.01893292]
[1746684801432,0.24682432,98949.0,98948.0,0.01893292]
[1746684801628,0.24882432,98949.0,98948.0,0.01893292]
[1746684801852,0.24782432,98949.0,98948.0,0.01893292]
[1746684802255,0.25082432,98949.0,98948.0,0.01893292]
[1746684802885,0.31936222,98949.0,98948.0,0.01893292]
[1746684804955,0.25082432,98949.0,98948.0,0.01893292]
[1746684806209,0.23512432,98949.0,98948.0,0.01893292]
[1746684806377,0.25102432,98949.0,98948.0,0.01893292]
[1746684810628,0.23512432,98949.0,98948.0,0.01893292]
[1746684811556,0.25022432,98949.0,98948.0,0.01893292]
[1746684813999,0.23582432,98949.0,98948.0,0.01893292]
[1746684814901,0.25142432,98949.0,98948.0,0.01893292]
[1746684816226,0.23582432,98949.0,98948.0,0.01893292]
[1746684816833,0.22012432,98949.0,98948.0,0.01893292]
[1746684819253,0.23542432,98949.0,98948.0,0.01893292]
[1746684821590,0.30402222,98949.0,98948.0,0.01893292]
[1746684821977,0.23542432,98949.0,98948.0,0.01893292]
[1746684824250,0.22012432,98949.0,98948.0,0.01893292]
[1746684831182,0.23522432,98949.0,98948.0,0.01893292]
[1746684831707,0.22012432,98949.0,98948.0,0.01893292]
[1746684833256,0.01,98949.0,98948.0,0.03443292]
[1746684833647,0.01,98949.0,98948.0,0.04984114]
[1746684835398,0.01,98949.0,98948.0,0.06554114]
[1746684835807,0.01,98949.0,98948.0,0.04984114]
[1746684836047,0.018,98949.0,98948.0,0.04984114]
[1746684836270,0.004,98949.0,98948.0,0.04984114]
[1746684836495,0.008,98949.0,98948.0,0.04984114]
[1746684836924,0.006,98949.0,98948.0,0.04984114]
[1746684837161,0.007,98949.0,98948.0,0.04984114]
[1746684837358,0.008,98949.0,98948.0,0.04984114]
[1746684837815,0.008,98949.0,98948.0,0.2519675]
[1746684839269,0.004,98949.0,98948.0,0.2519675]
[1746684839605,0.006,98949.0,98948.0,0.2519675]
[1746684840399,0.006,98949.0,98948.0,0.3216419]
[1746684840532,0.006,98949.0,98948.0,0.03434114]
[1746684840737,0.006,98949.0,98948.0,0.2364675]
[1746684840940,0.006,98949.0,98948.0,0.03434114]
[1746684841130,0.005,98949.0,98948.0,0.03434114]
[1746684841734,0.013,98949.0,98948.0,0.03434114]
[1746684841933,0.0294,98949.0,98948.0,0.01893292]
[1746684842195,0.0294,98949.0,98948.0,0.03407239]
[1746684842392,0.0284,98949.0,98948.0,0.03407239]
[1746684842611,0.23052432,98949.0,98948.0,0.03407239]
[1746684843141,0.23052432,98949.0,98948.0,0.01893292]
[1746684843638,0.23052432,98949.0,98948.0,0.03407239]
[1746684846418,0.23052432,98949.0,98948.0,0.01893292]
[1746684846639,0.23052432,98949.0,98948.0,0.03407239]
[1746684846868,0.23052432,98949.0,98948.0,0.01893292]
[1746684847374,0.0284,98949.0,98948.0,0.01893292]
[1746684847501,0.03076874,98949.0,98948.0,0.01893292]
[1746684847696,0.03076874,98949.0,98948.0,0.03407239]
[1746684847917,0.03076874,98949.0,98948.0,0.01893292]
[1746684849830,0.11442342,98949.0,98948.0,0.01893292]
[1746684851026,0.04666874,98949.0,98948.0,0.01893292]
[1746684852025,0.04866874,98949.0,98948.0,0.01893292]
[1746684853058,0.05066874,98949.0,98948.0,0.01893292]
[1746684854249,0.01836874,98949.0,98948.0,0.01893292]
[1746684857439,0.016,98949.0,98948.0,0.01893292]
[1746684857688,0.008,98949.0,98948.0,0.03407995]
[1746684858820,0.006,98949.0,98948.0,0.03407995]
[1746684859263,0.012,98949.0,98948.0,0.03407995]
[1746684859472,0.004,98949.0,98948.0,0.23620631]
[1746684859689,0.006,98949.0,98948.0,0.23620631]
[1746684864545,0.006,98949.0,98948.0,0.25074716]
[1746684864742,0.006,98949.0,98948.0,0.28104716]
[1746684865124,0.006,98949.0,98948.0,0.35869305]
[1746684865323,0.005,98949.0,98948.0,0.35869305]
[1746684865539,0.005,98949.0,98948.0,0.28104716]
[1746684865540,0.004,98949.0,98948.0,0.28104716]
[1746684865733,0.005,98949.0,98948.0,0.28104716]
[1746684865940,0.006,98949.0,98948.0,0.28104716]
[1746684866139,0.004,98949.0,98948.0,0.28104716]
[1746684868144,0.004,98949.0,98948.0,0.62104716]
[1746684869081,0.004,98949.0,98948.0,0.72656745]
[1746684872124,0.21220234,98963.0,98948.0,0.72656745]
[1746684872125,0.012,98969.0,98963.0,0.01010478]
[1746684872413,0.012,98969.0,98964.0,0.23113129]
[1746684872614,0.01010427,98968.0,98964.0,0.23609395]
[1746684872766,0.01010427,98968.0,98965.0,0.01893292]
[1746684873149,0.01010427,98968.0,98966.0,0.01506661]
[1746684873347,0.01010427,98968.0,98966.0,0.03399953]
[1746684873772,0.01010427,98968.0,98967.0,0.01893292]
[1746684874155,0.01001375,98968.0,98967.0,0.03399917]
[1746684874590,4.543e-05,98968.0,98967.0,0.03399917]
[1746684874789,0.00341417,98968.0,98967.0,0.03399917]
[1746684875147,0.00241417,98968.0,98967.0,0.03399917]
[1746684875342,0.00441417,98968.0,98967.0,0.03399917]
[1746684875545,0.00441417,98968.0,98967.0,0.07983915]
[1746684875945,0.00241417,98968.0,98967.0,0.07983915]
[1746684876204,0.00441417,98968.0,98967.0,0.07983915]
[1746684876611,0.00541417,98968.0,98967.0,0.07983915]
[1746684876815,0.00541417,98968.0,98967.0,0.03399917]
[1746684877024,0.00241417,98968.0,98967.0,0.01893292]
[1746684877398,0.00341417,98968.0,98967.0,0.01893292]
[1746684878229,0.00441417,98968.0,98967.0,0.01893292]
[1746684879841,0.00204543,98968.0,98967.0,0.03394378]
[1746684880165,0.00204543,98968.0,98967.0,0.01893292]
[1746684880618,0.01794543,98968.0,98967.0,0.01893292]
[1746684881218,0.00204543,98968.0,98967.0,0.01893292]
[1746684883664,0.01764543,98968.0,98967.0,0.01893292]
[1746684884472,0.00204543,98968.0,98967.0,0.01893292]
[1746684892006,0.00204543,98968.0,98967.0,0.03394378]
[1746684892398,0.01754543,98968.0,98967.0,0.03394378]
[1746684896730,0.00204543,98968.0,98967.0,0.03394378]
[1746684902576,0.0121497,98968.0,98965.0,0.0502587]
[1746684902825,0.0121497,98968.0,98967.0,0.0125094]
[1746684903031,0.0121497,98968.0,98966.0,0.01250976]
[1746684903227,0.0121497,98968.0,98967.0,0.0125094]
[1746684904072,0.01010488,98962.0,98958.0,0.32038764]
[1746684904348,0.01010529,98958.0,98952.0,0.01454085]
[1746684904569,0.0162,98958.0,98954.0,0.35454085]
[1746684904771,0.01810519,98959.0,98954.0,0.35454085]
[1746684904955,0.02610529,98958.0,98954.0,0.35454085]
[1746684905204,0.0314,98957.0,98954.0,0.35454085]
[1746684905428,0.016,98956.0,98954.0,0.5566531]
[1746684906057,0.016,98956.0,98954.0,0.5576531]
[1746684906267,0.016,98956.0,98954.0,0.5566531]
[1746684906493,0.016,98956.0,98954.0,0.5576531]
[1746684906714,0.0246,98959.0,98957.0,0.20210751]
[1746684907371,0.008,98959.0,98958.0,0.34]
[1746684908840,0.008,98959.0,98958.0,0.341]
[1746684909231,0.008,98959.0,98958.0,0.342]
[1746684909855,0.008,98959.0,98958.0,0.002]
[1746684910087,0.0231,98959.0,98958.0,0.35451266]
[1746684911419,0.0231,98959.0,98958.0,0.01251266]
[1746684911638,0.02546874,98959.0,98958.0,0.01251266]
[1746684911853,0.02546874,98959.0,98956.0,0.34]
[1746684911854,0.03587393,98959.0,98956.0,0.34]
[1746684912073,0.015,98957.0,98956.0,0.34]
[1746684912285,0.0101055,98956.0,98952.0,0.0101059]
[1746684912496,0.00236874,98955.0,98952.0,0.0101059]